Cogmind - Beta 14 @@@ ROGUE MODE // 2024.08.09 @ 17:13:25 Player: N.W.L Result: Destroyed by C1-99L(j) with Overtuned Pulse Rifle Performance ------------- Evolutions (3) 1500 Regions Visited (15) 3000 Robots Destroyed (266) 1330 Value Destroyed (8022) 8022 Prototype IDs (30) 600 Alien Tech Used (0) 0 Bonus (1382) 1382 TOTAL SCORE: 15834 Bonus ------- High Alert Combat Kills 819 Follower Combat Kills 714 Entered Garrisons 200 Registered with UFD 300 Friendly Fire -651 Cogmind --------- Core Integrity 0/700 Matter 300/300 Energy 87/325 System Corruption 1% Temperature Warm (179) Movement Treading (200) Ox1 Location -7/Scraptown Parts ------- > --- POWER (1) -------- Antimatter Reactor > --- PROPULSION (4) --- Overtuned Treads Heavy Treads > --- UTILITY (5) ------ Cargo Storage Unit Weapon Cycler A0-MCA's Component Scanner Improved Trap Extractor (4/6 Dirty Bomb) > --- WEAPON (3) ------- Cooled Pulse Rifle Heavy Beamcaster > --- INVENTORY (30) --- Scrap Suit Scrap Suit Improved Heat Sink Coolant Injector Huge Storage Unit Structural Scanner Transmission Jammer Hardened Heavy Armor Plating Improved Medium Armor Plating Improved Medium Armor Plating Medium Reactive Plating Improved Thermal Shield High-powered Tractor Beam Drone Bay (2/2) Cooled Particle Cannon Ion Burst Cannon Mini Assault Cannon Heavy Rocket Launcher Precision Rocket Launcher Improved Datajack Impact Mace DRS Beacon (Ready) Peak State ------------ > --- POWER ------------ Cooled Deuterium Engine > --- PROPULSION ------- Light Treads Improved Medium Treads Heavy Treads > --- UTILITY ---------- Huge Storage Unit Experimental Sensor Array Improved Signal Interpreter Weapon Cycler A0-MCA's Component Scanner > --- WEAPON ----------- Cooled Pulse Rifle Heavy Beamcaster Heavy Beamcaster > --- INVENTORY -------- Antimatter Reactor Improved Heat Sink Coolant Injector Cargo Storage Unit Improved Target Analyzer Transmission Jammer Hardened Heavy Armor Plating Improved Medium Armor Plating Improved Medium Armor Plating Medium Reactive Plating Improved Thermal Shield Improved Shield Generator High-powered Tractor Beam Improved Trap Extractor Drone Bay Cooled Particle Cannon Ion Burst Cannon Mini Assault Cannon Heavy Rocket Launcher Precision Rocket Launcher Improved Datajack Impact Mace DRS Beacon [Rating: 76] Favorites ----------- Power Cooled Ion Engine Engine Cooled Ion Engine Power Core Micro Nuclear Core Reactor Antimatter Reactor Propulsion Light Treads Treads Light Treads Leg Aluminum Leg Wheel Overtuned Scrapsphere Utility Huge Storage Unit Device Experimental Sensor Array Storage Huge Storage Unit Processor Improved Signal Interpreter Hackware Hacking Suite Protection Insulated Plating Weapon Heavy Beamcaster Energy Gun Heavy Beamcaster Energy Cannon Cooled Particle Cannon Ballistic Gun Improved Assault Rifle Ballistic Cannon Mini Assault Cannon Launcher Rocket Launcher Special Weapon Mining Laser Impact Weapon Impact Mace Slashing Weapon Katana Special Melee Weapon Improved Datajack Build | -11 -10 -10 -9 -9 -9 -8 -8 -8 -8 -7 -7 -7 -7 -7 -7 ------- Run | Yrd Mat Min Mat Min Exi Min Mat Gar Mat Fac Was Fac Sto Rec Scr Slots Evolved 6 | . . . 2 . . . 2 . . 2 . . . . . Power . | . . . . . . . . . . . . . . . . Propulsion 2 | . . . . . . . 1 . . 1 . . . . . Utility 3 | . . . 1 . . . 1 . . 1 . . . . . Weapon 1 | . . . 1 . . . . . . . . . . . . Parts Attached 255 | . 3 6 37 8 . 10 41 14 22 13 25 24 26 7 19 Power 15 | . . 1 3 . . . 1 1 1 2 2 . 3 . 1 Engine 9 | . . 1 3 . . . 1 1 . 1 . . 2 . . Core 4 | . . . . . . . . . 1 1 1 . 1 . . Reactor 2 | . . . . . . . . . . . 1 . . . 1 Propulsion 43 | . . 2 7 . . 2 9 3 3 4 3 3 2 1 4 Treads 40 | . . . 7 . . 2 9 3 3 4 3 3 2 1 3 Leg 2 | . . 2 . . . . . . . . . . . . . Wheel 1 | . . . . . . . . . . . . . . . 1 Hover . | . . . . . . . . . . . . . . . . Flight . | . . . . . . . . . . . . . . . . Utility 85 | . 2 1 8 5 . 2 10 5 8 6 9 13 7 1 8 Device 53 | . 2 1 2 5 . 1 5 2 5 1 5 11 7 1 5 Storage 5 | . . . 2 . . . . . . 1 1 . . . 1 Processor 3 | . . . . . . . 1 . . 1 . . . . 1 Hackware 1 | . . . . . . . 1 . . . . . . . . Protection 23 | . . . 4 . . 1 3 3 3 3 3 2 . . 1 Artifact . | . . . . . . . . . . . . . . . . Weapon 112 | . 1 2 19 3 . 6 21 5 10 1 11 8 14 5 6 Energy Gun 33 | . . 2 2 . . 1 5 . . . 6 4 7 2 4 Energy Cannon 30 | . . . 7 . . 2 6 2 4 1 2 . 4 1 1 Ballistic Gun 5 | . . . 5 . . . . . . . . . . . . Ballistic Cannon 10 | . . . 1 . . 1 5 . 3 . . . . . . Launcher 21 | . . . 4 2 . 2 3 1 3 . 2 2 2 . . Special Weapon 1 | . 1 . . . . . . . . . . . . . . Impact Weapon 6 | . . . . 1 . . . 2 . . . 1 1 1 . Slashing Weapon 3 | . . . . . . . 2 . . . 1 . . . . Piercing Weapon . | . . . . . . . . . . . . . . . . Special Melee Weapon 3 | . . . . . . . . . . . . 1 . 1 1 Unidentified Prototypes 19 | . . . 5 . . . 3 . 1 2 . . 8 . . Parts Lost 31 | . . . 2 . . 7 1 5 3 1 2 3 1 2 4 Power 4 | . . . 1 . . . . 1 1 . . . . . 1 Propulsion 12 | . . . . . . 2 1 3 1 1 . 1 1 1 1 Utility 7 | . . . 1 . . 2 . 1 1 . . 1 . . 1 Weapon 8 | . . . . . . 3 . . . . 2 1 . 1 1 Highest Loss Streak 4 | . . . 1 . . 3 1 4 2 1 2 3 1 2 4 To Critical Strikes . | . . . . . . . . . . . . . . . . Average Slot Usage (%) 92 | . 32 86 97 100 100 91 99 94 98 85 76 87 91 91 90 Engine 6 | . . 10 9 11 11 11 9 9 . . . . 6 7 6 Treads 22 | . . . 19 22 22 21 26 26 27 28 22 23 22 22 22 Device 14 | . 20 28 13 19 22 16 10 4 8 4 5 10 22 23 16 Storage 8 | . . . 11 11 11 11 9 9 9 10 6 7 7 7 7 Processor 5 | . . . . . . . 8 9 8 5 7 7 7 7 11 Protection 3 | . . . 6 2 . 1 6 6 8 6 6 7 . . . Energy Gun 9 | . . 21 2 . . 1 4 . . . 10 22 21 14 16 Energy Cannon 8 | . . . 16 11 11 19 11 23 23 10 6 . 1 6 . Ballistic Gun 2 | . . . 10 9 . . . . . . . . . . . Ballistic Cannon 1 | . . . 1 . . 1 7 . 1 11 . . . . . Launcher 2 | . . . 1 9 22 5 3 . 2 . . . . . . Impact Weapon 1 | . . . . 2 . . . 2 . . . . . . 2 Peak Build Rating 76 | . 3 10 26 25 22 25 38 40 42 50 68 72 73 72 76 Average Rating 47 | . 2 7 22 23 22 22 30 37 38 43 51 68 70 66 71 On Entrance 32 | . . 3 10 25 22 22 23 37 40 32 46 68 63 71 65 Naked Turns 16 | . 16 . . . . . . . . . . . . . . Heaviest Build 203 | . 3 11 106 103 102 103 130 130 132 203 134 151 116 118 174 Greatest Support 126 | 3 3 20 43 43 43 43 60 60 60 88 118 126 126 118 120 Greatest Overweight (x) 35 | . . . 2 2 2 2 2 2 2 2 35 1 1 1 2 Average Overweight (x) . | . . . 1 2 2 2 1 1 1 1 . . . . . Largest Inventory Capacity 30 | 5 5 5 25 25 25 25 25 25 25 25 25 25 25 25 30 Average Capacity 24 | 5 5 5 22 25 25 25 25 25 25 25 23 25 25 25 26 Most Carried 30 | . 3 5 25 25 25 25 25 25 25 25 25 25 25 25 30 Average Carried 23 | . . 4 20 25 25 22 24 24 24 23 21 24 24 24 25 Final Capacity 30 | 5 5 5 25 25 25 25 25 25 25 25 25 25 25 25 30 Final Carried 25 | . 3 5 25 25 25 19 25 25 24 24 25 22 25 25 25 Class Distribution -------------------- 26% | Tank 24% | Skirmisher 17% | Mutant 12% | Gunner 7% | Scavenger-Tank 4% | Hauler-Skirmisher 3% | Scavenger-Mutant Dominant Class ---------------- Mutant | -10/Materials Mutant | -10/Mines Tank | -9/Materials Gunner | -9/Mines Gunner | -9/Exiles Gunner | -8/Mines Scavenger-Tank | -8/Materials Tank | -8/Garrison Tank | -8/Materials Tank | -7/Factory Scavenger-Tank | -7/Waste Tank | -7/Factory Skirmisher | -7/Storage Skirmisher | -7/Recycling Mutant | -7/Scraptown Resources | -11 -10 -10 -9 -9 -9 -8 -8 -8 -8 -7 -7 -7 -7 -7 -7 ----------- Run | Yrd Mat Min Mat Min Exi Min Mat Gar Mat Fac Was Fac Sto Rec Scr Matter Collected 4216 | . 230 60 816 137 . 184 796 185 263 94 507 383 305 61 195 Remotely . | . . . . . . . . . . . . . . . . Salvage Created 9963 | . . 186 2290 72 . 324 1712 709 975 81 . 1576 990 706 342 Parts 526 | . . 15 127 3 . 29 91 37 56 3 . 89 43 19 14 Haulers Intercepted 15 | . . . 6 . . . 4 . . . . 3 2 . . Recyclers Shooed 10 | . . . 4 . . . 4 . . . . 1 . 1 . Parts Field Recycled . | . . . . . . . . . . . . . . . . Retrieved Matter . | . . . . . . . . . . . . . . . . Parts Self-Destructed . | . . . . . . . . . . . . . . . . Prevented . | . . . . . . . . . . . . . . . . Kills | -11 -10 -10 -9 -9 -9 -8 -8 -8 -8 -7 -7 -7 -7 -7 -7 ------- Run | Yrd Mat Min Mat Min Exi Min Mat Gar Mat Fac Was Fac Sto Rec Scr Combat Hostiles Destroyed 171 | . . 5 39 2 . 18 28 13 21 2 . 22 12 3 6 Guns 38 | . . 4 4 . . . . . . . . 17 8 . 5 Cannons 54 | . . 1 20 . . 3 13 5 8 2 . . . 2 . AOE 68 | . . . 14 2 . 15 13 6 12 . . 3 3 . . Classes Destroyed 23 | . . 3 10 . . 1 . . 2 1 . 1 . . 5 Worker 23 | . . . 5 . . 1 5 . 1 . . 9 2 . . Builder 9 | . . . 3 . . . 2 . . . . 1 1 2 . Tunneler 3 | . . 1 . 1 . 1 . . . . . . . . . Hauler 15 | . . . 6 . . . 4 . . . . 3 2 . . Recycler 22 | . . . 8 . . 1 2 . . . . 2 3 6 . Mechanic 3 | . . . 1 . . . . . 1 . . 1 . . . Operator 2 | . . . . . . . . . 1 . . 1 . . . Watcher 15 | . . . 5 . . . 3 . 2 . . 4 1 . . Swarmer 39 | . . 4 10 . . 11 8 . 3 . . . 3 . . Grunt 67 | . . 1 18 2 . 4 10 9 11 . . 8 4 . . Brawler 3 | . . . 1 . . . 1 1 . . . . . . . Duelist 7 | . . . 2 . . 2 . . 2 . . . 1 . . Protector 3 | . . . 1 . . . . . 2 . . . . . . Sentry 28 | . . . 7 . . . 7 3 2 1 . 2 3 3 . Specialist 1 | . . . . . . . . . . . . 1 . . . Hunter 7 | . . . . . . 1 2 . . . . 4 . . . Programmer 9 | . . . . . . . . . . 1 . 6 2 . . Heavy 1 | . . . . . . . . . 1 . . . . . . Bolteater 2 | . . . . . . . . . . . . . . . 2 Federalist 1 | . . . . . . . . . . . . . . . 1 Guru 1 | . . . . . . . . . . . . . . . 1 Scrapper 1 | . . . . . . . . . . . . . . . 1 Elite 1 | . . . . . . . . . . . . . . . 1 Surgeon 1 | . . . . . . . . . . . . . 1 . . Thug 1 | . . 1 . . . . . . . . . . . . . Butcher 1 | . . . . . . . . . . . . 1 . . . Best Kill Streak 11 | . . 4 11 2 . 5 7 6 5 1 . 9 3 5 3 Combat Bots Only 10 | . . 3 10 2 . 4 5 6 4 1 . 6 3 2 3 Max Kills in Single Turn 6 | . . 1 4 2 . 3 3 1 4 1 . 6 3 1 1 Gunslinging . | . . . . . . . . . . . . . . . . Exploded 4 | . . . 4 2 . 3 3 1 3 . . 2 3 . . Melee . | . . . . . . . . . . . . . . . . Uniques/NPCs Destroyed . | . . . . . . . . . . . . . . . . Combat | -11 -10 -10 -9 -9 -9 -8 -8 -8 -8 -7 -7 -7 -7 -7 -7 -------- Run | Yrd Mat Min Mat Min Exi Min Mat Gar Mat Fac Was Fac Sto Rec Scr Hostile Shots Fired 853 | . 7 20 137 1 . 31 75 47 62 38 . 163 66 135 71 Missed 231 | . 3 4 32 . . 8 15 13 19 15 . 51 17 40 14 Damage Taken 8897 | . 44 136 1294 16 . 820 885 638 958 192 279 1521 473 529 1112 Core 1328 | . 22 33 135 . . 133 134 29 134 16 97 32 79 52 432 Absorbed by Shields 141 | . . . . . . . . . . . . . . 141 . Reduced by Siege Mode 43 | . . . . . . . . . . . . 9 . 34 . Ignored by Resistances 471 | . . . . . . . 72 . 217 . . 182 . . . Regen/Repaired (Parts) 1555 | . . . 716 . . . . . . . 111 231 497 . . Core Remaining (%) 64 | 100 . 78 . . . 33 . . 46 . . . . . . Volleys Fired 542 | . 1 20 118 4 . 26 78 48 53 12 4 67 68 26 17 Largest 3 | . 1 2 3 2 . 3 3 3 3 3 2 3 3 3 3 Hottest 243 | . 100 105 204 68 . 204 171 90 96 126 60 243 243 243 182 Shots Fired 1244 | . 1 36 283 5 . 48 174 84 121 30 6 184 157 74 41 Gun 577 | . . 32 115 . . 3 14 . . . 1 180 139 53 40 Cannon 577 | . . . 153 3 . 31 139 70 109 30 3 . 17 21 1 Launcher 85 | . . . 15 2 . 14 21 14 12 . 2 4 1 . . Special 5 | . 1 4 . . . . . . . . . . . . . Kinetic 181 | . . . 91 . . 3 52 . 27 8 . . . . . Thermal 978 | . 1 36 177 3 . 31 101 70 82 22 4 180 156 74 41 Explosive 41 | . . . 15 2 . 14 1 . 2 . 2 4 1 . . Electromagnetic 44 | . . . . . . . 20 14 10 . . . . . . Robot Hit Streak 22 | . . 4 12 1 . 6 14 8 9 7 4 10 10 18 22 Robot Miss Streak 6 | . . 2 6 2 . 2 6 5 4 3 3 4 4 4 2 Penetration Max . | . . . . . . . . . . . . . . . . Secondary Targets 6 | . . . . . . . . . . . . 3 1 . 2 Max Gunslinging Chain 1 | . . . . . . . . . . . . 1 1 . 1 Shots Hit Robots 643 | . . 18 156 2 . 24 82 27 62 20 2 109 68 46 27 Core Hits 364 | . . 8 84 6 . 29 51 19 42 3 3 58 35 16 10 Critical Kills 2 | . . . 1 . . . 1 . . . . . . . . Critical Parts Destroyed 1 | . . . . 1 . . . . . . . . . . . Critical Strikes 35 | . . . 2 1 . . 2 . . 1 . 16 6 5 2 Burn 30 | . . . 1 . . . . . . . . 16 6 5 2 Meltdown 2 | . . . 1 . . . 1 . . . . . . . . Blast 2 | . . . . . . . 1 . . 1 . . . . . Smash 1 | . . . . 1 . . . . . . . . . . . Melee Attacks 24 | . . . . 6 . . 3 5 . . 6 3 . . 1 Impact 13 | . . . . 6 . . . 5 . . . 2 . . . Slashing 9 | . . . . . . . 3 . . . 6 . . . . Piercing . | . . . . . . . . . . . . . . . . Sneak Attacks 3 | . . . . 1 . . . . . . . 1 . . 1 Combat Hostiles . | . . . . . . . . . . . . . . . . Follow-up Attacks . | . . . . . . . . . . . . . . . . Damage Inflicted 22013 | . . 238 4226 251 . 1749 3213 1346 2949 579 193 3600 2096 1054 519 Guns 7177 | . . 214 952 . . 50 121 . . . 35 2767 1766 753 519 Cannons 7512 | . . . 2107 21 . 397 1797 614 1616 579 . . 83 298 . Explosions 7203 | . . . 1167 158 . 1302 1295 732 1326 . 158 818 247 . . Melee 72 | . . . . 72 . . . . . . . . . . . Ramming 25 | . . . . . . . . . 7 . . 15 . 3 . Kinetic 2199 | . . . 959 . . 51 539 . 482 168 . . . . . Thermal 12687 | . . 238 2100 21 . 396 1420 673 1207 411 35 2767 1849 1051 519 Explosive 4529 | . . . 1167 158 . 1302 146 . 533 . 158 818 247 . . Electromagnetic 2501 | . . . . . . . 1108 673 720 . . . . . . Impact 72 | . . . . 72 . . . . . . . . . . . Slashing . | . . . . . . . . . . . . . . . . Piercing . | . . . . . . . . . . . . . . . . Highest Corruption 7 | . . . . . . 6 1 . . . 7 3 3 1 1 Average Corruption 2 | . . . . . . 6 1 . . . 4 2 2 1 1 Corruption Purged 9 | . . . . . . . 1 . . . 5 . 3 . . Corruption Blocked . | . . . . . . . . . . . . . . . . Effects 89 | . . . . . . 13 4 . . . 18 28 14 12 . Message Errors 17 | . . . . . . 5 1 . . . 3 5 1 2 . Matter Fused 23 | . . . . . . 3 . . . . 3 10 5 2 . Heat Flow Errors 6 | . . . . . . . 1 . . . 1 2 2 . . Energy Discharges 11 | . . . . . . 1 . . . . 1 3 2 4 . Parts Fused 3 | . . . . . . . . . . . 2 1 . . . Data Loss (minor) 11 | . . . . . . . 2 . . . 6 2 . 1 . Data Loss (major) 5 | . . . . . . 1 . . . . 1 1 1 1 . Misfires 10 | . . . . . . 2 . . . . 1 3 3 1 . Alerts 2 | . . . . . . 1 . . . . . . . 1 . Weapon Failures 1 | . . . . . . . . . . . . 1 . . . Overload Shots 3 | . . . . . . . . . . . . . 2 . 1 Overflow Damage 356 | . . . 49 72 . 100 43 . 51 24 . 7 10 . . Projectiles 145 | . . . 23 . . 36 15 . 41 24 . . 6 . . Explosions 139 | . . . 26 . . 64 28 . 10 . . 7 4 . . Melee 72 | . . . . 72 . . . . . . . . . . . Knockbacks 9 | . . . 4 1 . 1 2 . . 1 . . . . . Impact 1 | . . . . 1 . . . . . . . . . . . Kinetic 8 | . . . 4 . . 1 2 . . 1 . . . . . Secondary . | . . . . . . . . . . . . . . . . Self-Inflicted Damage 312 | . . . 39 . . 69 120 40 44 . . . . . . Shots 17 | . . . 1 . . 3 9 2 2 . . . . . . Rammed 3 | . . . . . . . . . 1 . . 1 . 1 . Targets Rammed 3 | . . . . . . . . . 1 . . 1 . 1 . Kicked . | . . . . . . . . . . . . . . . . Crushed . | . . . . . . . . . . . . . . . . Highest Temperature 437 | . . 270 407 4 . 300 214 153 208 241 124 437 411 369 358 Average Temperature 100 | . . 99 119 2 . 116 41 37 69 89 46 117 109 86 153 Received Heat Transfer 2374 | . 24 . 447 9 . 18 288 324 243 48 . 462 138 120 253 Effects 14 | . . . 2 . . . . . . . . 3 5 1 3 Shutdowns 2 | . . . . . . . . . . . . . 1 . 1 Energy Bleed 2 | . . . . . . . . . . . . 1 . . 1 Interference 7 | . . . 2 . . . . . . . . 2 3 . . Short Circuit 2 | . . . . . . . . . . . . . . 1 1 Damage (minor) 1 | . . . . . . . . . . . . . 1 . . Siege Activations 10 | . . . . . . . . . . . . 7 1 2 . Total Turns 110 | . . . . . . . . . . . . 74 7 29 . Longest Duration 23 | . . . . . . . . . . . . 23 7 19 . Robots Corrupted 6 | . . . . 1 . . 2 2 1 . . . . . . Combat Hostiles 5 | . . . . . . . 2 2 1 . . . . . . Parts Fried 26 | . . . . . . . 8 7 10 . . . 1 . . Impact Corruptions 3 | . . . . 3 . . . . . . . . . . . Robots Melted 7 | . . . 1 . . . 1 . . . . 2 1 1 1 Combat Hostiles 6 | . . . 1 . . . . . . . . 2 1 1 1 Parts Melted 48 | . . . 4 . . 1 7 2 3 . . 12 7 10 2 Heat Transferred 22061 | . . 546 3893 37 . 740 2072 817 1654 555 75 5365 3257 2072 978 Parts Sabotaged . | . . . . . . . . . . . . . . . . Parts Stolen 1 | . . . . . . . . . . . . . . . 1 Parts Stripped . | . . . . . . . . . . . . . . . . Power Chain Reactions 12 | . . . . . . . 4 4 4 . . . . . . Alert | -11 -10 -10 -9 -9 -9 -8 -8 -8 -8 -7 -7 -7 -7 -7 -7 ------- Run | Yrd Mat Min Mat Min Exi Min Mat Gar Mat Fac Was Fac Sto Rec Scr Peak Influence 997 | . 92 105 816 307 . 401 552 997 928 453 129 587 496 302 . Initial 485 | . . 35 40 307 . . 143 349 485 422 106 . 252 152 . Average 303 | . 42 56 341 76 . 245 383 647 647 379 33 361 356 108 . Maximum Alert Level 3 | . . . 3 1 . 2 2 3 3 2 . 2 2 1 . Low Security (%) 36 | 100 100 100 25 82 . 38 10 . . . 100 17 . 86 . Level 1 32 | . . . 45 17 . 54 39 10 . 31 . 37 82 13 . Level 2 24 | . . . 16 . . 6 49 37 72 68 . 44 17 . . Level 3 7 | . . . 11 . . . . 52 27 . . . . . . Level 4 . | . . . . . . . . . . . . . . . . Level 5 . | . . . . . . . . . . . . . . . . High Security . | . . . . . . . . . . . . . . . . Max Security . | . . . . . . . . . . . . . . . . Squads Dispatched 40 | . 2 . 5 1 . . 6 . 4 1 . 14 7 . . Investigation 7 | . 1 . 2 . . . 2 . . . . 2 . . . Extermination 7 | . . . . . . . . . . 1 . 4 2 . . Reinforcement 18 | . 1 . 2 . . . 1 . 2 . . 7 5 . . Assault 4 | . . . 1 1 . . . . 2 . . . . . . Garrison 4 | . . . . . . . 3 . . . . 1 . . . Intercept . | . . . . . . . . . . . . . . . . Searches Triggered . | . . . . . . . . . . . . . . . . Construction Impeded 5 | . . . 1 . . . 1 . . . . 2 1 . . Haulers Reinforced . | . . . . . . . . . . . . . . . . Active Scanning Responses . | . . . . . . . . . . . . . . . . Cargo Convoy Interrupts 1 | . . . . . . . . . . . . 1 . . . Stealth | -11 -10 -10 -9 -9 -9 -8 -8 -8 -8 -7 -7 -7 -7 -7 -7 --------- Run | Yrd Mat Min Mat Min Exi Min Mat Gar Mat Fac Was Fac Sto Rec Scr Distress Signals 13 | . 1 . 3 . . . 1 . 3 . . 2 3 . . Communications Jammed . | . . . . . . . . . . . . . . . . Distress Signals . | . . . . . . . . . . . . . . . . Times Spotted 253 | . 8 8 52 2 . 15 36 12 32 2 5 44 25 3 9 Peak Tracking Total 8 | . 8 3 6 1 . 4 5 5 5 1 5 6 5 2 7 Tactical Retreats 9 | . . 1 2 . . 1 1 . 4 . . . . . . Traps | -11 -10 -10 -9 -9 -9 -8 -8 -8 -8 -7 -7 -7 -7 -7 -7 ------- Run | Yrd Mat Min Mat Min Exi Min Mat Gar Mat Fac Was Fac Sto Rec Scr Traps Triggered 7 | . . . 2 . . . . 2 . 2 . . 1 . . Indirectly . | . . . . . . . . . . . . . . . . Trap Hack Attempts . | . . . . . . . . . . . . . . . . Triggered . | . . . . . . . . . . . . . . . . Disarmed 4 | . . . . . . . . . . . . 4 . . . Reprogrammed . | . . . . . . . . . . . . . . . . Reused 1 | . . . . . . . . . . . . . . . 1 Traps Extracted 5 | . . . . 5 . . . . . . . . . . . Installed 2 | . . . . . . . . . . . . . . . 2 Triggered 1 | . . . . . . . 1 . . . . . . . . Most Traps Carried 6 | . . . . 5 5 5 5 4 4 4 4 4 4 4 6 Machines | -11 -10 -10 -9 -9 -9 -8 -8 -8 -8 -7 -7 -7 -7 -7 -7 ---------- Run | Yrd Mat Min Mat Min Exi Min Mat Gar Mat Fac Was Fac Sto Rec Scr Machines Disabled 33 | . . . 2 . . 2 5 8 8 1 . 1 5 . 1 Max in Single Turn 3 | . . . 1 . . 2 2 1 3 1 . 1 1 . 1 Garrison Relay 2 | . . . . . . . . 2 . . . . . . . Phase Generator 1 | . . . . . . . . 1 . . . . . . . Machines Repaired . | . . . . . . . . . . . . . . . . Machines Dismantled . | . . . . . . . . . . . . . . . . Machines Sabotaged . | . . . . . . . . . . . . . . . . Overloaded Fab Kills . | . . . . . . . . . . . . . . . . Hacking | -11 -10 -10 -9 -9 -9 -8 -8 -8 -8 -7 -7 -7 -7 -7 -7 --------- Run | Yrd Mat Min Mat Min Exi Min Mat Gar Mat Fac Was Fac Sto Rec Scr Machines Accessed 62 | . 4 . 11 . 1 . 7 . 6 1 . 9 6 13 4 Terminals 39 | . 3 . 6 . . . 6 . 5 . . 8 5 6 . Fabricators 2 | . . . . . . . . . . 1 . 1 . . . Repair Stations 3 | . . . 2 . . . . . . . . . 1 . . Recycling Units 10 | . 1 . 2 . . . . . 1 . . . . 6 . Scanalyzers 1 | . . . 1 . . . . . . . . . . . . Garrison Access 1 | . . . . . . . 1 . . . . . . . . Total Hacks 163 | . 14 . 32 . 1 . 19 . 15 2 . 24 9 36 11 Successful 79 | . 5 . 21 . 1 . 6 . 5 1 . 6 7 16 11 Failed 84 | . 9 . 11 . . . 13 . 10 1 . 18 2 20 . Catastrophic 15 | . . . . . . . . . 2 . . 6 1 6 . Database Lockouts . | . . . . . . . . . . . . . . . . Manual 71 | . 7 . 8 . . . 16 . 11 . . 13 5 11 . Terminals 104 | . 10 . 15 . . . 18 . 14 . . 23 7 17 . Fabricators 3 | . . . . . . . . . . 2 . 1 . . . Repair Stations 12 | . . . 10 . . . . . . . . . 2 . . Recycling Units 28 | . 4 . 5 . . . . . 1 . . . . 18 . Scanalyzers 2 | . . . 2 . . . . . . . . . . . . Garrison Access 1 | . . . . . . . 1 . . . . . . . . Terminal Hacks 41 | . 2 . 7 . 1 . 4 . 3 . . 4 5 4 11 Record 13 | . . . . . 1 . . . 1 . . . . 1 10 Robot Analysis 6 | . 1 . 3 . . . . . . . . . . 2 . Open Door 4 | . . . . . . . . . . . . . 4 . . Branch Access Points 4 | . . . 1 . . . 2 . . . . 1 . . . Terminal Index 4 | . 1 . . . . . 1 . 1 . . 1 . . . Alert Level 2 | . . . . . . . . . 1 . . . 1 . . Unreport Threat 1 | . . . . . . . 1 . . . . . . . . Locate Traps 1 | . . . 1 . . . . . . . . . . . . Disarm Traps 1 | . . . . . . . . . . . . 1 . . . Zone Layout 4 | . . . 2 . . . . . . . . 1 . 1 . Derelict Proto ID Bank 1 | . . . . . . . . . . . . . . . 1 Fabricator Hacks 1 | . . . . . . . . . . 1 . . . . . Network Status 1 | . . . . . . . . . . 1 . . . . . Repair Station Hacks 10 | . . . 8 . . . . . . . . . 2 . . Scan Component 5 | . . . 4 . . . . . . . . . 1 . . Repair 5 | . . . 4 . . . . . . . . . 1 . . Recycling Unit Hacks 10 | . 1 . 2 . . . . . 1 . . . . 6 . Retrieve Components 10 | . 1 . 2 . . . . . 1 . . . . 6 . Scanalyzer 2 | . . . 2 . . . . . . . . . . . . Insert Component 1 | . . . 1 . . . . . . . . . . . . Analyze 1 | . . . 1 . . . . . . . . . . . . Garrison Access Hacks 1 | . . . . . . . 1 . . . . . . . . Unlock Access 1 | . . . . . . . 1 . . . . . . . . Unauthorized Hacks 14 | . 2 . 2 . . . 1 . 1 . . 2 . 6 . Terminals 6 | . 1 . 1 . . . 1 . 1 . . 2 . . . Botnet 6 | . 1 . 1 . . . 1 . 1 . . 2 . . . Fabricators . | . . . . . . . . . . . . . . . . Repair Stations . | . . . . . . . . . . . . . . . . Recycling Units 8 | . 1 . 1 . . . . . . . . . . 6 . Tunnel 8 | . 1 . 1 . . . . . . . . . . 6 . Scanalyzers . | . . . . . . . . . . . . . . . . Garrison Access . | . . . . . . . . . . . . . . . . Data Cores Recovered . | . . . . . . . . . . . . . . . . Used . | . . . . . . . . . . . . . . . . Hacking Detections 49 | . 4 . 9 . . . 7 . 6 1 . 9 3 10 . Full Trace Events 9 | . . . 1 . . . 1 . 1 . . 2 . 4 . Feedback Events . | . . . . . . . . . . . . . . . . Feedback Blocked . | . . . . . . . . . . . . . . . . Robot Schematics Acquired . | . . . . . . . . . . . . . . . . Robots Built . | . . . . . . . . . . . . . . . . Authchips . | . . . . . . . . . . . . . . . . Time . | . . . . . . . . . . . . . . . . Total Robot Build Rating . | . . . . . . . . . . . . . . . . Part Schematics Acquired 1 | . . . 1 . . . . . . . . . . . . Parts Built . | . . . . . . . . . . . . . . . . Authchips . | . . . . . . . . . . . . . . . . Time . | . . . . . . . . . . . . . . . . Total Part Build Rating . | . . . . . . . . . . . . . . . . Parts Repaired 5 | . . . 4 . . . . . . . . . 1 . . Time 172 | . . . 116 . . . . . . . . . 56 . . Parts Recycled . | . . . . . . . . . . . . . . . . Recycled Matter . | . . . . . . . . . . . . . . . . Retrieved Matter . | . . . . . . . . . . . . . . . . Retrieved Components 38 | . . . 17 . . . . . 2 . . . . 19 . Parts Scanalyzed 1 | . . . 1 . . . . . . . . . . . . Part Schematics Acquired 1 | . . . 1 . . . . . . . . . . . . Parts Damaged . | . . . . . . . . . . . . . . . . Bothacking | -11 -10 -10 -9 -9 -9 -8 -8 -8 -8 -7 -7 -7 -7 -7 -7 ------------ Run | Yrd Mat Min Mat Min Exi Min Mat Gar Mat Fac Was Fac Sto Rec Scr Used RIF Installer . | . . . . . . . . . . . . . . . . Robots Hacked 1 | . . . . . . . . . . . . . . . 1 Non-combat . | . . . . . . . . . . . . . . . . Combat 1 | . . . . . . . . . . . . . . . 1 Robot Hacks Applied 1 | . . . . . . . . . . . . . . . 1 parse_system 1 | . . . . . . . . . . . . . . . 1 Relay Couplers Released 8 | . . . . . . . . 8 . . . . . . . Machine Destruction 8 | . . . . . . . . 8 . . . . . . . Fabnet Peak Effective % . | . . . . . . . . . . . . . . . . Robots Rewired . | . . . . . . . . . . . . . . . . Allies Hacked 1 | . . . . . . . . . . . . 1 . . . Hacks Repelled . | . . . . . . . . . . . . . . . . Allies | -11 -10 -10 -9 -9 -9 -8 -8 -8 -8 -7 -7 -7 -7 -7 -7 -------- Run | Yrd Mat Min Mat Min Exi Min Mat Gar Mat Fac Was Fac Sto Rec Scr Total Allies 30 | . . . . 1 . . . . . . 19 . 10 . . Largest Group 19 | . . . . 1 . . . . . . 19 16 10 . . Highest-Rated Group 475 | . . . . 31 . . . . . . 475 409 173 . . Highest-Rated Ally 35 | . . . . 31 . . . . . . 35 35 29 . . Total Orders 4 | . . . . . . . . . . . . . 3 1 . STAY 1 | . . . . . . . . . . . . . 1 . . FOLLOW 1 | . . . . . . . . . . . . . 1 . . EXPLORE 1 | . . . . . . . . . . . . . 1 . . RETURN 1 | . . . . . . . . . . . . . . 1 . Ally Attacks 239 | . . . . 6 . . . . . . 87 75 71 . . Total Damage 5530 | . . . . 105 . . . . . . 2799 1806 820 . . Kills 31 | . . . . 2 . . . . . . 6 16 7 . . Allies Corrupted 2 | . . . . . . . . . . . . 1 1 . . Allies Melted 1 | . . . . . . . . . . . . . 1 . . Intel | -11 -10 -10 -9 -9 -9 -8 -8 -8 -8 -7 -7 -7 -7 -7 -7 ------- Run | Yrd Mat Min Mat Min Exi Min Mat Gar Mat Fac Was Fac Sto Rec Scr Robot Analysis Total 6 | . 1 . 3 . . . . . . . . . . 2 . Derelict Logs Recovered 4 | . . 2 . 2 . . . . . . . . . . . Drone Launches 3 | . . . . . . . . . . . . . 2 1 . Drone Recoveries 1 | . . . . . . . . . . . . . . 1 . Exploration | -11 -10 -10 -9 -9 -9 -8 -8 -8 -8 -7 -7 -7 -7 -7 -7 ------------- Run | Yrd Mat Min Mat Min Exi Min Mat Gar Mat Fac Was Fac Sto Rec Scr Turns Passed 23763 | 9 98 516 3256 2286 400 770 1888 1210 1119 584 1212 2394 1895 1633 4493 Spaces Moved 8538 | 18 158 410 920 698 126 215 570 314 281 189 496 818 453 636 2236 Core 507 | 18 158 155 . . . . . . . . 176 . . . . Treads 7594 | . . . 738 698 126 215 570 314 281 189 320 818 453 636 2236 Legs 437 | . . 255 182 . . . . . . . . . . . . Wheels . | . . . . . . . . . . . . . . . . Hover . | . . . . . . . . . . . . . . . . Flight . | . . . . . . . . . . . . . . . . Fastest Speed 50 | 50 50 50 120 320 320 320 240 240 240 240 50 160 160 160 160 Average Speed 228 | 50 50 93 282 320 320 320 250 297 315 266 171 239 161 237 192 Slowest Speed 1800 | 50 50 120 320 320 320 320 320 320 320 320 1800 240 240 240 320 Overloaded Moves . | . . . . . . . . . . . . . . . . Propulsion Burnouts . | . . . . . . . . . . . . . . . . Robots Hopped . | . . . . . . . . . . . . . . . . Cave-ins Triggered 2 | . . . . . . 1 . . . . 1 . . . . Exploration Rate (%) 59 | 3 35 95 77 100 47 39 64 44 46 7 96 31 74 98 93 Regions Visited 15 Branch Regions 7 Pre-discovered Areas 12 | . 1 1 1 . 1 . . . . . . . . 6 2 Known Exits Taken 7 | . . . 1 . 1 . 1 . 1 . . 1 1 1 . Unknown Exits Taken 5 | 1 1 1 . 1 . 1 . . . . . . . . . Scrap Searched 8 | . . 2 . 2 . . . . . . . . . . 4 Spaces Dug 87 | . 1 1 12 2 . 25 3 2 8 . 9 2 18 1 3 Terrain Destroyed 706 | . 1 3 98 18 . 176 50 92 134 1 23 44 44 12 10 Melee 15 | . . . . 2 . . 3 2 . . 6 2 . . . Projectile 130 | . 1 3 3 . . 2 26 . 40 1 3 . 29 12 10 AOE 561 | . . . 95 16 . 174 21 90 94 . 14 42 15 . . Terrain Rammed . | . . . . . . . . . . . . . . . . Walls Destroyed . | . . . . . . . . . . . . . . . . Machines Disabled . | . . . . . . . . . . . . . . . . Actions | -11 -10 -10 -9 -9 -9 -8 -8 -8 -8 -7 -7 -7 -7 -7 -7 --------- Run | Yrd Mat Min Mat Min Exi Min Mat Gar Mat Fac Was Fac Sto Rec Scr Total 11749 | 17 171 498 1341 733 125 256 886 513 409 249 850 1103 1493 701 2404 Wait 2091 | . 7 53 215 16 . 5 139 118 36 20 268 183 919 29 83 Move 8526 | 17 157 409 919 697 125 214 570 313 281 189 494 818 452 635 2236 Hop . | . . . . . . . . . . . . . . . . Pick Up 145 | . 3 6 29 1 . 1 19 5 5 6 27 2 6 3 32 Fast Attach 71 | . 3 3 12 . . . 12 2 7 5 10 . 15 . 2 Attach 54 | . . 2 3 . . 7 4 6 3 6 6 4 4 3 6 Detach 24 | . . . 5 . . . 4 3 . 4 2 1 5 . . Swap 130 | . . 1 22 8 . 3 25 6 12 2 9 20 7 4 11 Drop 132 | . . 4 18 1 . . 32 5 12 5 23 5 13 . 14 Fire 542 | . 1 20 118 4 . 26 78 48 53 12 4 67 68 26 17 Melee 24 | . . . . 6 . . 3 5 . . 6 3 . . 1 Ram . | . . . . . . . . . . . . . . . . Kick . | . . . . . . . . . . . . . . . . Crush 1 | . . . . . . . . . . . . . . 1 . Escape Stasis 7 | . . . . . . . . 2 . . 1 . 4 . . Rewire . | . . . . . . . . . . . . . . . . Trap 2 | . . . . . . . . . . . . . . . 2 Miscellaneous . | . . . . . . . . . . . . . . . . Route ------- -11/Scrapyard -10/Materials -10/Mines (discovered 2 exits: *Mat x2) -9/Materials (discovered 3 exits: *Mat x2 / *Min) -9/Mines (discovered 4 exits: *Mat x2 / *Exi / [*Zio]) -9/Exiles -8/Mines -8/Materials (discovered 3 exits: *Fac x2 / Gar) -8/Garrison -8/Materials -7/Factory -7/Waste -7/Factory (discovered 3 exits: *Sto / *Low x2) -7/Storage -7/Recycling (discovered 2 exits: [*Fac] / *Scr) -7/Scraptown (discovered 1 exit: [*Fac]) History --------- Turn | Location | Event 4 | -11/Scrapyard | Discovered new exit (range 13) 10 | -11/Scrapyard | Entered Materials 88 | -10/Materials | Discovered new exit (range 13) 108 | -10/Materials | Entered Mines 119 | -10/Mines | Met a Derelict bent on vengeance 121 | -10/Mines | Discovered new exit (range 9) 121 | -10/Mines | Learned location of Storage (-7) 191 | -10/Mines | Discovered new exit (range 9) 310 | -10/Mines | Build established: Mutant 624 | -10/Mines | Entered Materials 624 | -9/Materials | Evolved 2 slots: Utility x1, Weapon x1 625 | -9/Materials | Identified exit to Mines 689 | -9/Materials | Repaired Cargo Storage Unit 716 | -9/Materials | Repaired Huge Storage Unit 787 | -9/Materials | Build established: Scavenger-Mutant 1312 | -9/Materials | Build established: Gunner 1492 | -9/Materials | Destroyed 10 combat bots 2328 | -9/Materials | Repaired Lgt. Treads 2415 | -9/Materials | Build established: Tank 2750 | -9/Materials | Discovered new exit (range 11) 3343 | -9/Materials | Discovered new exit (range 10) 3424 | -9/Materials | First assault squad dispatched 3691 | -9/Materials | Repaired Imp. Heat Sink 3880 | -9/Materials | Entered Mines 4232 | -9/Mines | A Derelict revealed a hidden shortcut to a safe place 4254 | -9/Mines | Discovered new exit (range 5) 4575 | -9/Mines | Assembled infested the area 4607 | -9/Mines | Learned location of 1 exit from Materials 4611 | -9/Mines | Met 8R-AWN 4668 | -9/Mines | Build established: Gunner 4670 | -9/Mines | Learned Materials emergency access door positions 4740 | -9/Mines | Found a damaged Exp. Sensor Array with a note attached 4747 | -9/Mines | Found Prototype Device 4876 | -9/Mines | Discovered new exit (range 13) 5172 | -9/Mines | Met a Derelict testing a Signal Generator 5560 | -9/Mines | Build established: Mutant 5650 | -9/Mines | Discovered new exit (range 5) 6130 | -9/Mines | Build established: Gunner 6166 | -9/Mines | Entered Exiles 6167 | -9/Exiles | Identified exit to Mines 6246 | -9/Exiles | Welcomed by 8R-AWN 6301 | -9/Exiles | Learned about 8R-AWN's background 6301 | -9/Exiles | Met EX-HEX 6438 | -9/Exiles | Learned location of Zion (-7) 6566 | -9/Exiles | Entered Mines 6609 | -8/Mines | Lost 3 parts (1n1u1w) 6951 | -8/Mines | Crushed by falling debris 6951 | -8/Mines | Core integrity fell below 50% 7273 | -8/Mines | Discovered new exit (range 14) 7336 | -8/Mines | Entered Materials 7336 | -8/Materials | Evolved 2 slots: Propulsion x1, Utility x1 7337 | -8/Materials | Identified exit to Factory 7878 | -8/Materials | Build established: Scavenger-Tank 7936 | -8/Materials | Discovered exit to Factory (range 6) 9001 | -8/Materials | Garrison activated, responded to threat 9224 | -8/Materials | Identified exit to Garrison 9224 | -8/Materials | Entered Garrison 9352 | -8/Garrison | Garrison Relay disabled 9454 | -8/Garrison | Triggered checkpoint 9492 | -8/Garrison | Triggered checkpoint 9541 | -8/Garrison | Triggered checkpoint 9552 | -8/Garrison | Triggered checkpoint 9595 | -8/Garrison | Lost 4 parts (1p3n) 9941 | -8/Garrison | Discovered new exit (range 17) 10084 | -8/Garrison | Build established: Tank 10200 | -8/Garrison | Phase Generator disabled 10271 | -8/Garrison | Garrison Relay disabled 10298 | -8/Garrison | Triggered checkpoint 10434 | -8/Garrison | Entered Materials 10834 | -8/Materials | First assault squad dispatched 11451 | -8/Materials | Discovered exit to Factory (range 19) 11510 | -8/Materials | Core integrity fell below 50% 11553 | -8/Materials | Entered Factory 11553 | -7/Factory | Evolved 2 slots: Propulsion x1, Utility x1 11653 | -7/Factory | Identified Exp. Sensor Array 12137 | -7/Factory | Sucked down chute 12137 | -7/Factory | Entered Waste 12399 | -7/Waste | Crushed by falling debris 12451 | -7/Waste | Spotted C-40 Crusher 12458 | -7/Waste | Spotted C-40 Crusher 12463 | -7/Waste | Spotted C-40 Crusher 12482 | -7/Waste | Spotted C-40 Crusher 12483 | -7/Waste | Discovered new exit (range 16) 12499 | -7/Waste | Warlord forces began an assault 12501 | -7/Waste | Spotted C-40 Crusher 12514 | -7/Waste | Allies destroyed C-40 Crusher 12516 | -7/Waste | Allies destroyed C-40 Crusher 12518 | -7/Waste | Allies destroyed C-40 Crusher 12523 | -7/Waste | Allies destroyed C-40 Crusher 12526 | -7/Waste | Allies destroyed C-40 Crusher 12602 | -7/Waste | Lost 3 allies 13070 | -7/Waste | Build established: Scavenger-Tank 13335 | -7/Waste | Identified exit to Factory 13349 | -7/Waste | Entered Factory 13349 | -7/Factory | Accompanied by 16 allies 13434 | -7/Factory | Build established: Tank 13759 | -7/Factory | Lost 5 allies 13900 | -7/Factory | P-60 Hacker assimilated allied 86-NMB(l) 13942 | -7/Factory | Lost 4 allies 14497 | -7/Factory | Garrison activated, responded to threat 14672 | -7/Factory | Cargo convoy interrupted 14909 | -7/Factory | Discovered new exit (range 6) 14919 | -7/Factory | Identified exit to Lower Caves 15404 | -7/Factory | Identified exit to Storage 15556 | -7/Factory | Build established: Skirmisher 15743 | -7/Factory | Entered Storage 15743 | -7/Storage | Accompanied by 1 ally 15771 | -7/Storage | Lost 3 parts (1n1u1w) 15999 | -7/Storage | Assisted by bots powering up and referring to "LRC-V3" 16211 | -7/Storage | Lost 4 allies 16294 | -7/Storage | Build established: Commander-Skirmisher 16329 | -7/Storage | Repaired Hvy. Treads 16592 | -7/Storage | P-60 Hacker assimilated allied Soldier 4a 16669 | -7/Storage | Build established: Skirmisher 17534 | -7/Storage | Used back door to open Recycling access 17534 | -7/Storage | Discovered new exit (range 3) 17636 | -7/Storage | Identified exit to Recycling 17638 | -7/Storage | Entered Recycling 18927 | -7/Recycling | Discovered new exit (range 15) 19210 | -7/Recycling | Scanned before Scraplab entrance 19268 | -7/Recycling | Discovered new exit (range 2) 19268 | -7/Recycling | Identified exit to Scraptown 19271 | -7/Recycling | Entered Scraptown 19271 | -7/Scraptown | System corruption cleaned by C-Scrubber 19514 | -7/Scraptown | Build established: Mutant 19573 | -7/Scraptown | Heard Great Nut preacher, LISTEN AND RECITE! 19592 | -7/Scraptown | Visited UFD Registry 19592 | -7/Scraptown | Registered with UFD as "Gearrunner" 19695 | -7/Scraptown | Visited TADAMA 19747 | -7/Scraptown | Visited SPCMW 19880 | -7/Scraptown | Visited Shadow of the Wyrm 19910 | -7/Scraptown | Visited IN-MT5's Study 20026 | -7/Scraptown | Visited Fellowship of the Rings 20153 | -7/Scraptown | Visited Cyclists 20186 | -7/Scraptown | Entered Cyclist Reading Room 20804 | -7/Scraptown | Visited Assassins FH 20893 | -7/Scraptown | Visited Curators Association 20949 | -7/Scraptown | Visited Science Testing Area 20981 | -7/Scraptown | Visited Scrap Suit Storage 21047 | -7/Scraptown | Visited Observation Area 21114 | -7/Scraptown | Visited Derelict Rescue Squad 21132 | -7/Scraptown | Found DRS Beacon 21181 | -7/Scraptown | Visited A0-MCA Data Center 21196 | -7/Scraptown | Given a B rating by A0-MCA 21200 | -7/Scraptown | Found A0-MCA's Component Scanner 21298 | -7/Scraptown | Visited Science Guys 21461 | -7/Scraptown | Visited Scrapoid Pod Storage 21474 | -7/Scraptown | Build established: Skirmisher 22316 | -7/Scraptown | Discovered new exit (range 7) 22703 | -7/Scraptown | Found Scrap Suit 22709 | -7/Scraptown | Found Scrap Suit 22713 | -7/Scraptown | Found Scrap Suit 22999 | -7/Scraptown | Build established: Hauler-Skirmisher 23579 | -7/Scraptown | Attacked by Scraptown defenders 23748 | -7/Scraptown | Core integrity fell below 50% 23762 | -7/Scraptown | Core integrity fell below 20% 23764 | -7/Scraptown | Destroyed by C1-99L(j) with Overtuned Pulse Rifle Last Messages --------------- 23746_ Lgt. Treads broken. 23746_ Overheating: Short circuit. 23746_ MI-15U(r) follow-up attacks with Ripteeth. 23747_ Penetrated by Siege Slug. 23747_ Imp. Medium Treads destroyed. 23747_ Siege Slug penetrates Machine. 23747_ Machine disabled. 23748_ Destroyed Ripteeth. 23749_ Penetrated by Siege Slug. 23750_ Acquired 12 matter. 23751_ Power failure, Antimatter Reactor shutdown. 23751_ Broken Lgt. Treads ripped off. 23760_ MI-15U(r) destroyed. 23761_ Siege Slug penetrates Wall. 23762_ Overheating: Energy bleed (-7). 23763_ Acquired 13 matter. 23763_ Penetrated by Siege Slug. 23763_ Siege Slug penetrates Earth. 23764_ C1-99L(j) cannibalizes Mak. Microdissipator Network to repair Mak. Microdissipator Network. Map ----- +----------------------------------------------------+ | #?????????#"" "############?????????? | | ## ################"" "## """""""""?????????? | | """""""""""""""""""""" "## ""!""""""#????????? | | """""""""""""""""""""" """""""""#????????? | | "## """"#????????? | | "## ! """"#????????? | | "## " """"#????????? | | "# """""""""#????????? | | " """""""""#????????? | | """""" """"""""""" "" "" """""""""#????????? | | ###### ########### """";; """"########?????????? | | ????"""""???# ;j= ; #????????????????? | | ?? #?#" ;!% ; #????????????????? | | # ##?#&" "" ; =!! #????????????????? | | ## ??# " "" ; ; ?????????????????? | | ?# #?#!! ; ; ##############??### | | ?# ##?#"" "" ; ;################### | | ?# # #??#"""" "" ; % # ### ## | | ?# # # ##??#""|" "; ## ## | | ?### ?# #???#"""" """; !# ######? | | ???##??##???#""" X """""; = [%! ##???? | | ????????????#"""""""""""; =%! [#!#####???? | | ????????????#############==!;#################???? | | #########################%% ###############??????? | | #"""##"""##"""##"""##"|"#[ %""""#????????????????? | | #|""##" "##"""##"" ##" #@[ " "#????????????????? | | ! "#????????????????? | | % "#????????????????? | | =![ " ""#????????????????? | | #"""##"" ##"|"##!! ##""|## #;####????????????????? | | #"""##"""##"""##"""##"" ##;###???????????????????? | | ########################## #?????????????????????? | | ?????????????????????????? #?????????????????????? | | ??????????????????????????##?????????????????????? | | ?????????????????????????????????????????????????? | | ?????????????????????????????????????????????????? | | ?????????????????????????????????????????????????? | | ?????????????????????????????????????????????????? | | ?????????????????????????????????????????????????? | | ?????????????????????????????????????????????????? | | ?????????????????????????????????????????????????? | | ?????????????????????????????????????????????????? | | ?????????????????????????????????????????????????? | | ?????????????????????????????????????????????????? | | ?????????????????????????????????????????????????? | | ?????????????????????????????????????????????????? | | | | | | | | | +----------------------------------------------------+ Best States ------------- Heat Dissipation 59 Coolant Potential 65 Energy Generation 23 Energy Capacity 325 Matter Stores 300 Matter Capacity 300 Sight Range 20 Robot Scan Range 20 Terrain Scan Density 10 Jamming Range 12 Armor Coverage 1650 Resistance: KI 30 Resistance: TH 25 Resistance: EM 15 Weapon Cycling 15 Evasion (%) 55 Recoil Reduction 4 Offensive Hacking 10 Trap Extractor Capacity 8 Item Schematics ----------------- Cargo Storage Unit | -9/Materials | Scanalyzed Robot Schematics ------------------ None Fabricated ------------ Nothing Alien Tech Used ----------------- None Achievements -------------- Prolific Hacker Challenges ------------ None Game ------ Seed CompositeAccelerationSaw Manual? 0 Play Time 02:22:24 Cumulative 235.6 hours Start 2024.08.08 @ 15:38:53 End 2024.08.09 @ 17:13:25 Sessions 5 Manual Loads 0 Difficulty Rogue Special Mode None Game No. 117 Rogue 117 Adventurer 0 Explorer 0 Win Type - Total 8 Types 4/1/3/0/0/0/0/0/0 Lore% 66 Gallery% 82 Achievement% 69 Wizard Run 0 Options --------- Layout 0 ASCII 0 Keyboard 0 Movement Mouse Keybinds 0 Fullscreen 2 Font 18/SmallcapsGlow Map View 76x50 Zoom Use 0% Tactical HUD 1 Map Filters NONE Filters NONE Steam 1 RUN: c2ed7bb5-6c5b-4bbd-85b0-7c106a473e36